fUSD/lending_fUSD_20260118
["ID","MTS","AMOUNT","RATE_DAILY","PERIOD"]
[402640437,1768734649917,-500.0,0.00017534,2]
[402640438,1768734649927,-500.0,0.00017534,2]
[402640439,1768734649937,-500.0,0.00017534,2]
[402640440,1768734649947,-500.0,0.00017534,2]
[402640441,1768734649956,-500.0,0.00017534,2]
[402640442,1768734649966,-500.0,0.00017534,2]
[402640443,1768734649976,-500.0,0.00017534,2]
[402640444,1768734649985,-500.0,0.00017534,2]
[402640445,1768734649995,-500.0,0.00017534,2]
[402640446,1768734650005,-500.0,0.00017534,2]
[402640447,1768734650014,-500.0,0.00017534,2]
[402640448,1768734650023,-500.0,0.00017534,2]
[402640449,1768734650097,-500.0,0.00017534,2]
[402640450,1768734650107,-500.0,0.00017534,2]
[402640451,1768734650117,-500.0,0.00017534,2]
[402640452,1768734650127,-500.0,0.00017534,2]
[402640453,1768734650136,-280.03679699,0.00017534,2]
[402640454,1768734650146,-500.0,0.00017534,2]
[402640455,1768734650155,-500.0,0.00017534,2]
[402640456,1768734650164,-500.0,0.00017534,2]
[402640457,1768734650173,-500.0,0.00017534,2]
[402640458,1768734650182,-500.0,0.00017534,2]
[402640459,1768734650191,-500.0,0.00017534,2]
[402640460,1768734650200,-500.0,0.00017534,2]
[402640461,1768734650210,-199.01720964,0.00017534,2]
[402640462,1768734650220,-214.32714493,0.00017534,2]
[402640463,1768734650229,-500.0,0.00017534,2]
[402640464,1768734650239,-500.0,0.00017534,2]
[402640465,1768734650249,-500.0,0.00017534,2]
[402640466,1768734650258,-500.0,0.00017534,2]
[402640467,1768734650268,-500.0,0.00017534,2]
[402640468,1768734650278,-500.0,0.00017534,2]
[402640469,1768734650287,-500.0,0.00017534,2]
[402640470,1768734650296,-500.0,0.00017534,2]
[402640471,1768734650306,-500.0,0.00017534,2]
[402640472,1768734650315,-500.0,0.00017534,2]
[402640473,1768734650324,-500.0,0.00017534,2]
[402640474,1768734650334,-500.0,0.00017534,2]
[402640475,1768734650343,-377.53433084,0.00017534,2]
[402640476,1768734650352,-500.0,0.00017534,2]
[402640477,1768734650361,-500.0,0.00017534,2]
[402640478,1768734650370,-500.0,0.00017534,2]
[402640479,1768734650379,-500.0,0.00017534,2]
[402640480,1768734650388,-500.0,0.00017534,2]
[402640481,1768734650398,-500.0,0.00017534,2]
[402640482,1768734650407,-500.0,0.00017534,2]
[402640483,1768734650416,-562.11,0.00017534,2]
[402640484,1768734650426,-500.0,0.00017534,2]
[402640485,1768734650436,-500.0,0.00017534,2]
[402640486,1768734650445,-500.0,0.00017534,2]
[402640487,1768734650455,-500.0,0.00017534,2]
[402640488,1768734650464,-500.0,0.00017534,2]
[402640489,1768734650473,-500.0,0.00017534,2]
[402640490,1768734650482,-746.47,0.00017534,2]
[402640491,1768734650492,-500.0,0.00017534,2]
[402640492,1768734650502,-500.0,0.00017534,2]
[402640493,1768734650510,-500.64,0.00017534,2]
[402640494,1768734650520,-631.35,0.00017534,2]
[402640495,1768734650529,-1503.17,0.00017534,2]
[402640496,1768734650539,-500.0,0.00017534,2]
[402640497,1768734650549,-500.0,0.00017534,2]
[402640498,1768734650558,-500.0,0.00017534,2]
[402640499,1768734650568,-500.0,0.00017534,2]
[402640500,1768734650577,-500.0,0.00017534,2]
[402640501,1768734650587,-500.0,0.00017534,2]
[402640502,1768734650596,-500.0,0.00017534,2]
[402640503,1768734650606,-500.0,0.00017534,2]
[402640504,1768734650615,-500.0,0.00017534,2]
[402640505,1768734650624,-500.0,0.00017534,2]
[402640506,1768734650633,-500.0,0.00017534,2]
[402640507,1768734650643,-619.16,0.00017534,2]
[402640508,1768734650652,-522.42,0.00017534,2]
[402640509,1768734650661,-500.0,0.00017534,2]
[402640510,1768734650670,-500.0,0.00017534,2]
[402640511,1768734650679,-500.0,0.00017534,2]
[402640512,1768734650688,-500.0,0.00017534,2]
[402640513,1768734650698,-500.0,0.00017534,2]
[402640514,1768734650707,-500.0,0.00017534,2]
[402640515,1768734650716,-500.0,0.00017534,2]
[402640516,1768734650726,-500.0,0.00017534,2]
[402640517,1768734650739,-500.0,0.00017534,2]
[402640518,1768734650748,-229.31631433,0.00017534,2]
[402640519,1768734650757,-714.9,0.00017534,2]
[402640520,1768734650767,-500.0,0.00017534,2]
[402640521,1768734650778,-4281.34,0.00017534,2]
[402640522,1768734650787,-500.0,0.00017534,2]
[402640523,1768734650796,-500.0,0.00017534,2]
[402640524,1768734650808,-500.0,0.00017534,2]
[402640525,1768734650818,-500.0,0.00017534,2]
[402640526,1768734650827,-500.0,0.00017534,2]
[402640527,1768734650837,-500.0,0.00017534,2]
[402640528,1768734650846,-500.0,0.00017534,2]
[402640529,1768734650856,-521.06,0.00017534,2]
[402640530,1768734650866,-500.0,0.00017534,2]
[402640531,1768734650875,-500.0,0.00017534,2]
[402640532,1768734650884,-500.0,0.00017534,2]
[402640533,1768734650893,-500.0,0.00017534,2]
[402640534,1768734650903,-500.0,0.00017534,2]
[402640535,1768734650912,-500.0,0.00017534,2]
[402640536,1768734650921,-617.61,0.00017534,2]
[402640537,1768734650931,-500.0,0.00017534,2]
[402640538,1768734650940,-500.0,0.00017534,2]
[402640539,1768734650950,-701.52,0.00017534,2]
[402640540,1768734650960,-500.0,0.00017534,2]
[402640541,1768734650969,-1395.94,0.00017534,2]
[402640542,1768734650979,-500.0,0.00017534,2]
[402640543,1768734650988,-500.0,0.00017534,2]
[402640544,1768734650997,-500.0,0.00017534,2]
[402640545,1768734651007,-500.0,0.00017534,2]
[402640546,1768734651016,-500.0,0.00017534,2]
[402640547,1768734651026,-500.0,0.00017534,2]
[402640548,1768734651035,-500.0,0.00017534,2]
[402640549,1768734651045,-500.0,0.00017534,2]
[402640550,1768734651054,-500.0,0.00017534,2]
[402640551,1768734651063,-500.0,0.00017534,2]
[402640552,1768734651072,-500.0,0.00017534,2]
[402640553,1768734651082,-500.0,0.00017534,2]
[402640554,1768734651091,-500.0,0.00017534,2]
[402640555,1768734651100,-500.0,0.00017534,2]
[402640556,1768734651109,-500.0,0.00017534,2]
[402640557,1768734651119,-600.0,0.00017534,2]
[402640558,1768734651128,-1000.0,0.00017534,2]
[402640559,1768734651138,-5888.0,0.00017545,2]
[402640560,1768734651147,-4147.84463711,0.00017556,2]
[402640561,1768734651156,-1795.05404166,0.0001756,2]
[402640562,1768734651166,-1500.0,0.00017568,2]
[402640563,1768734651175,-500.0,0.00017568,2]
[402640564,1768734651184,-1500.0,0.00017568,2]
[402640565,1768734651194,-440.38824472,0.00017568,2]
[402640566,1768734651203,-622.45048123,0.00017568,2]
[402640567,1768734651212,-1500.0,0.00017568,2]
[402640568,1768734651222,-500.0,0.00017568,2]
[402640569,1768734651231,-1005.48964317,0.00017568,2]
[402640570,1768734651241,-373.13604917,0.00017568,2]
[402640571,1768734651250,-500.0,0.00017568,2]
[402640572,1768734651260,-1500.0,0.00017568,2]
[402640573,1768734651269,-1500.0,0.00017568,2]
[402640574,1768734651279,-1500.0,0.00017568,2]
[402640575,1768734651288,-630.30097829,0.00017568,2]
[402640576,1768734651298,-500.0,0.00017568,2]
[402640577,1768734651307,-1500.0,0.00017568,2]
[402640578,1768734651317,-1000.0,0.00017568,2]
[402640579,1768734651327,-500.0,0.00017568,2]
[402640580,1768734651336,-500.0,0.00017568,2]
[402640581,1768734651346,-1500.0,0.00017568,2]
[402640582,1768734651355,-1500.0,0.00017568,2]
[402640583,1768734651365,-1500.0,0.00017568,2]
[402640584,1768734651374,-1500.0,0.00017568,2]
[402640585,1768734651383,-1500.0,0.00017568,2]
[402640586,1768734651392,-761.65,0.00017615,2]
[402640587,1768734651401,-151.1,0.00017615,2]
[402640588,1768734651411,-8511.66526342,0.0001764,2]
[402640589,1768734651420,-567.8712304,0.0001764,2]
[402640590,1768734651429,-595.37131296,0.00017642,2]
[402640591,1768734651439,-373.22,0.00017709,2]
[402640592,1768734651448,-187.0545473,0.00017727,2]
[402640593,1768734651457,-150.0,0.00017743,2]
[402640594,1768734651466,-151.1,0.00017743,2]
[402640595,1768734651475,-150.0,0.00017755,2]
[402640596,1768734651484,-5888.0,0.00017757,2]
[402640597,1768734651493,-4897.0,0.00017793,2]
[402640598,1768734651503,-2483.06338129,0.00017808,2]
[402640599,1768734651512,-2456.44059903,0.00017808,2]
[402640600,1768734651521,-225.02321167,0.00017808,2]
[402640601,1768734651530,-500.0,0.00017808,2]
[402640602,1768734651540,-500.0,0.00017808,2]
[402640603,1768734651550,-500.0,0.00017808,2]
[402640604,1768734651560,-500.0,0.00017808,2]
[402640605,1768734651569,-6419.9340803,0.00017808,3]
[402640606,1768734651579,-500.0,0.00017808,2]
[402640607,1768734651588,-500.0,0.00017808,2]
[402640608,1768734651598,-500.0,0.00017808,2]
[402640609,1768734651607,-500.0,0.00017808,2]
[402640610,1768734651616,-609.2,0.00017808,2]
[402640611,1768734651626,-309.87631596,0.00017808,2]
[402640612,1768734651636,-500.0,0.00017808,2]
[402640613,1768734651645,-502.76,0.00017808,2]
[402640614,1768734651654,-500.0,0.00017808,2]
[402640615,1768734651664,-164.42534113,0.00017808,2]
[402640616,1768734651673,-500.0,0.00017808,2]
[402640617,1768734651682,-500.0,0.00017808,2]
[402640618,1768734651691,-349.41839706,0.00017808,2]
[402640619,1768734651699,-500.0,0.00017808,2]
[402640620,1768734651709,-500.0,0.00017808,2]
[402640621,1768734651719,-500.0,0.00017808,2]
[402640622,1768734651731,-500.0,0.00017808,2]
[402640623,1768734651742,-500.0,0.00017808,2]
[402640624,1768734651751,-500.0,0.00017808,2]
[402640625,1768734651762,-500.0,0.00017808,2]
[402640626,1768734651774,-500.0,0.00017808,2]
[402640627,1768734651784,-500.0,0.00017808,2]
[402640628,1768734651794,-500.0,0.00017808,2]
[402640629,1768734651813,-500.0,0.00017808,2]
[402640630,1768734651835,-500.0,0.00017808,2]
[402640631,1768734651848,-500.0,0.00017808,2]
[402640632,1768734651858,-459.94166502,0.00017808,2]
[402640633,1768734651868,-202.77767559,0.00017808,2]
[402640634,1768734651878,-500.0,0.00017808,2]
[402640635,1768734651888,-500.0,0.00017808,2]
[402640636,1768734651897,-500.0,0.00017808,2]
[402640637,1768734651906,-500.0,0.00017808,2]
[402640638,1768734651915,-500.0,0.00017808,2]
[402640639,1768734651926,-500.0,0.00017808,2]
[402640640,1768734651935,-511.75446925,0.00017808,2]
[402640641,1768734651944,-500.0,0.00017808,2]
[402640642,1768734651953,-500.0,0.00017808,2]
[402640643,1768734651963,-500.0,0.00017808,2]
[402640644,1768734651974,-500.0,0.00017808,2]
[402640645,1768734651984,-500.0,0.00017808,2]
[402640646,1768734651993,-500.0,0.00017808,2]
[402640647,1768734652002,-500.0,0.00017808,2]
[402640648,1768734652012,-500.0,0.00017808,2]
[402640649,1768734652021,-500.0,0.00017808,2]
[402640650,1768734652030,-500.0,0.00017808,2]
[402640651,1768734652039,-500.0,0.00017808,2]
[402640652,1768734652051,-500.0,0.00017808,2]
[402640653,1768734652061,-500.0,0.00017808,2]
[402640654,1768734652070,-500.0,0.00017808,2]
[402640655,1768734652079,-340.69354695,0.00017808,2]
[402640656,1768734652089,-500.0,0.00017808,2]
[402640657,1768734652099,-500.0,0.00017808,2]
[402640658,1768734652108,-500.0,0.00017808,2]
[402640659,1768734652118,-500.0,0.00017808,2]
[402640660,1768734652127,-500.0,0.00017808,2]
[402640661,1768734652137,-500.0,0.00017808,2]
[402640662,1768734652147,-500.0,0.00017808,2]
[402640663,1768734652158,-500.0,0.00017808,2]
[402640664,1768734652170,-500.0,0.00017808,2]
[402640665,1768734652179,-500.0,0.00017808,2]
[402640666,1768734652188,-452.21963669,0.00017808,2]
[402640667,1768734652197,-500.0,0.00017808,2]
[402640668,1768734652206,-500.0,0.00017808,2]
[402640669,1768734652215,-562.11,0.00017808,2]
[402640670,1768734652225,-500.0,0.00017808,2]
[402640671,1768734652235,-350.77476421,0.00017808,2]
[402640672,1768734652245,-500.0,0.00017808,2]
[402640673,1768734652254,-500.0,0.00017808,2]
[402640674,1768734652264,-500.0,0.00017808,2]
[402640675,1768734652275,-531.52249639,0.00017808,2]
[402640676,1768734652284,-746.47,0.00017808,2]
[402640677,1768734652293,-500.0,0.00017808,2]
[402640678,1768734652303,-500.0,0.00017808,2]
[402640679,1768734652313,-500.64,0.00017808,2]
[402640680,1768734652323,-631.35,0.00017808,2]
[402640681,1768734652332,-1503.17,0.00017808,2]
[402640682,1768734652341,-265.14582479,0.00017808,2]
[402640683,1768734652350,-500.0,0.00017808,2]
[402640684,1768734652360,-500.0,0.00017808,2]
[402640685,1768734652369,-500.0,0.00017808,2]
[402640686,1768734652379,-500.0,0.00017808,2]
[402640687,1768734652389,-500.0,0.00017808,2]
[402640688,1768734652398,-500.0,0.00017808,2]
[402640689,1768734652408,-500.0,0.00017808,2]
[402640690,1768734652417,-627.846373,0.00017808,2]
[402640691,1768734652426,-500.0,0.00017808,2]
[402640692,1768734652436,-500.0,0.00017808,2]
[402640693,1768734652446,-619.16,0.00017808,2]
[402640694,1768734652455,-522.42,0.00017808,2]
[402640695,1768734652465,-500.0,0.00017808,2]
[402640696,1768734652475,-500.0,0.00017808,2]
[402640697,1768734652484,-500.0,0.00017808,2]
[402640698,1768734652494,-500.0,0.00017808,2]
[402640699,1768734652503,-500.0,0.00017808,2]
[402640700,1768734652513,-500.0,0.00017808,2]
[402640701,1768734652522,-500.0,0.00017808,2]
[402640702,1768734652532,-218.43658578,0.00017808,2]
[402640703,1768734652541,-223.92234316,0.00017808,2]
[402640704,1768734652551,-714.9,0.00017808,2]
[402640705,1768734652561,-500.0,0.00017808,2]
[402640706,1768734652571,-4281.34,0.00017808,2]
[402640707,1768734652581,-500.0,0.00017808,2]
[402640708,1768734652590,-500.0,0.00017808,2]
[402640709,1768734652600,-500.0,0.00017808,2]
[402640710,1768734652610,-500.0,0.00017808,2]
[402640711,1768734652619,-500.0,0.00017808,2]
[402640712,1768734652629,-500.0,0.00017808,2]
[402640713,1768734652638,-500.0,0.00017808,2]
[402640714,1768734652647,-521.06,0.00017808,2]
[402640715,1768734652656,-500.0,0.00017808,2]
[402640716,1768734652665,-500.0,0.00017808,2]
[402640717,1768734652674,-254.90827374,0.00017808,2]
[402640718,1768734652683,-500.0,0.00017808,2]
[402640719,1768734652693,-500.0,0.00017808,2]
[402640720,1768734652702,-500.0,0.00017808,2]
[402640721,1768734652711,-617.61,0.00017808,2]
[402640722,1768734652720,-500.0,0.00017808,2]
[402640723,1768734652731,-500.0,0.00017808,2]
[402640724,1768734652743,-701.52,0.00017808,2]
[402640725,1768734652753,-500.0,0.00017808,2]
[402640726,1768734652763,-1395.94,0.00017808,2]
[402640727,1768734652772,-500.0,0.00017808,2]
[402640728,1768734652783,-500.0,0.00017808,2]
[402640729,1768734652792,-514.96113347,0.00017808,2]
[402640730,1768734652802,-500.0,0.00017808,2]
[402640731,1768734652811,-446.51185643,0.00017808,2]
[402640732,1768734652820,-639.87368614,0.00017808,2]
[402640733,1768734652830,-500.0,0.00017808,2]
[402640734,1768734652840,-500.0,0.00017808,2]
[402640735,1768734652850,-500.0,0.00017808,2]
[402640736,1768734652860,-500.0,0.00017808,2]
[402640737,1768734652872,-500.0,0.00017808,2]
[402640738,1768734652881,-500.0,0.00017808,2]
[402640739,1768734652892,-500.0,0.00017808,2]
[402640740,1768734652902,-500.0,0.00017808,2]
[402640741,1768734652912,-362.4011516,0.00017808,2]
[402640742,1768734652922,-600.0,0.00017808,2]
[402640743,1768734652932,-250.0,0.00017808,2]
[402640744,1768734652941,-1000.0,0.00017808,2]
[402640745,1768734652950,-163.1649928,0.00017808,2]
[402640746,1768734652960,-2402.73867139,0.0001783,2]
[402640747,1768734652969,-4897.0,0.0001783,2]
[402640748,1768734652979,-939.884,0.00017843,2]
[402640749,1768734652989,-200.0,0.00017855,2]
[402640750,1768734652998,-200.0,0.00017856,2]
[402640751,1768734653008,-200.0,0.00017856,2]
[402640752,1768734653017,-5800.0,0.00017858,2]
[402640753,1768734653027,-500.0,0.00017863,2]
[402640754,1768734653036,-500.0,0.00017863,2]
[402640755,1768734653046,-5800.0,0.00017866,2]
[402640756,1768734653056,-151.1,0.00017872,2]
[402640757,1768734653065,-2651.66932639,0.00017874,2]
[402640758,1768734653075,-4677.85900416,0.00017874,2]
[402640759,1768734653084,-6997.79730586,0.00017874,2]
[402640760,1768734653093,-9468.261,0.00017874,2]
[402640761,1768734653103,-5800.0,0.00017874,2]
[402640762,1768734653112,-151.0,0.00017875,2]
[402640763,1768734653121,-151.0,0.00017875,2]
[402640764,1768734653131,-5800.0,0.00017883,2]
[402640765,1768734653141,-5888.0,0.00017887,2]
[402640766,1768734653150,-761.65,0.00017889,2]
[402640767,1768734653160,-1132.80477824,0.00017891,2]
[402640768,1768734653169,-5800.0,0.00017891,2]
[402640769,1768734653179,-1132.80477824,0.00017893,2]
[402640770,1768734653188,-1132.80477824,0.00017895,2]
[402640771,1768734653198,-1132.80477824,0.00017896,2]
[402640772,1768734653208,-1132.80477824,0.00017898,2]
[402640773,1768734653217,-6898.1368,0.000179,2]
[402640774,1768734653227,-5800.0,0.000179,2]
[402640775,1768734653237,-172.1921752,0.000179,2]
[402640776,1768734653247,-1012.87,0.000179,7]
[402640777,1768734653256,-307.73291253,0.000179,2]
[402640778,1768734653267,-307.73291253,0.000179,2]
[402640779,1768734653276,-307.73291253,0.000179,2]
[402640780,1768734653286,-307.73291253,0.000179,2]
[402640781,1768734653295,-307.73291253,0.000179,2]
[402640782,1768734653306,-307.73291253,0.000179,2]
[402640783,1768734653315,-307.73291253,0.000179,2]
[402640784,1768734653324,-307.73291253,0.000179,2]
[402640785,1768734653333,-307.73291253,0.000179,2]
[402640786,1768734653343,-1795.05404166,0.000179,2]
[402640787,1768734653352,-307.73291253,0.000179,2]
[402640788,1768734653362,-307.73291253,0.000179,2]
[402640789,1768734653371,-307.73291253,0.000179,2]
[402640790,1768734653380,-307.73291253,0.000179,2]
[402640791,1768734653390,-307.73291253,0.000179,2]
[402640792,1768734653399,-307.73291253,0.000179,2]
[402640793,1768734653408,-307.73291253,0.000179,2]
[402640794,1768734653418,-307.73291253,0.000179,2]
[402640795,1768734653428,-307.73291253,0.000179,2]
[402640796,1768734653437,-307.73291253,0.000179,2]
[402640797,1768734653447,-151.41453832,0.000179,2]
[402640798,1768734653457,-2480.83969998,0.000179,2]
[402640799,1768734653466,-1132.80477824,0.000179,2]
[402640800,1768734653476,-1249.39886294,0.000179,2]
[402640801,1768734653485,-3092.052693,0.000179,2]
[402640802,1768734653496,-829.5534708,0.000179,2]
[402640803,1768734653505,-4147.84463711,0.000179,2]
[402640804,1768734653515,-211.61539095,0.000179,3]
[402640805,1768734653524,-500.0,0.000179,2]
[402640806,1768734653535,-500.0,0.000179,2]
[402640807,1768734653544,-500.0,0.000179,2]
[402640808,1768734653554,-500.0,0.000179,2]
[402640809,1768734653563,-500.0,0.000179,2]
[402640810,1768734653572,-500.0,0.000179,2]
[402640811,1768734653582,-3507.0,0.000179,2]
[402640812,1768734653592,-2351.0,0.00017905,2]
[402640813,1768734653601,-500.0,0.00017918,2]
[402640814,1768734653611,-500.0,0.00017918,2]
[402640815,1768734653620,-1000.0,0.00017946,2]
[402640816,1768734653630,-661.50728786,0.0001797,2]
[402640817,1768734653640,-500.0,0.00017972,2]
[402640818,1768734653650,-224.71091954,0.00017972,2]
[402640819,1768734653659,-765.0,0.00017973,2]
[402640820,1768734653669,-500.0,0.00017973,2]
[402640821,1768734653679,-150.0,0.00017973,2]
[402640822,1768734653688,-155.6514004,0.0001799,2]
[402640823,1768734653697,-315491.6187647,0.00017991,2]
[402640824,1768734653708,-14109.906699,0.00017991,2]
[402640825,1768734653719,-32969.83439,0.00017991,2]
[402640826,1768734653729,-153.855505,0.00017991,2]
[402640827,1768734653742,-2845.1327215,0.00017991,2]
[402640828,1768734653752,-3310.7006629,0.00017991,2]
[402640829,1768734653761,-46525.4666539,0.00017991,2]
[402640830,1768734653770,-151.0,0.00017991,2]
[402640831,1768734653781,-151.0,0.00017991,2]
[402640832,1768734653791,-261.35951101,0.00017999,2]
[402640833,1768734653801,-300.0,0.00017999,2]
[402640834,1768734653811,-666.0,0.00017999,2]
[402640835,1768734653821,-300.0,0.00017999,2]
[402640836,1768734653831,-300.0,0.00017999,2]
[402640837,1768734653841,-300.0,0.00017999,2]
[402640838,1768734653851,-666.0,0.00017999,2]
[402640839,1768734653860,-150.0,0.00018,2]
[402640840,1768734653870,-150.0,0.00018,2]
[402640841,1768734653881,-150.0,0.00018,2]
[402640842,1768734653891,-265.5663701,0.00018,2]
[402640843,1768734653901,-150.0,0.00018,2]
[402640844,1768734653910,-236.45405301,0.00018,2]
[402640845,1768734653920,-1002.61682753,0.00018,2]
[402640846,1768734653929,-1267129.82967661,0.00018,2]
[402640847,1768734653939,-46806.58624826,0.00018,2]
[402640848,1768734655114,-84.5918788,0.00014898,2]
[402640849,1768734655127,-415.4081212,0.00014898,2]
[402640850,1768734655138,-500.0,0.00014898,2]
[402640851,1768734655148,-500.0,0.00014898,2]
[402640852,1768734655161,-631.19399297,0.00014898,2]
[402640853,1768734655172,-1387.67424783,0.00018,2]
[402640854,1768734655600,-328.06517492,0.00018,2]
[402640855,1768734655856,-6562.0,0.00017154,2]
[402640856,1768734655867,-428498.82076989,0.00018,2]
[402640857,1768734954607,1246.02,0.00025048,120]
[402640858,1768735507969,192.05881641,0.00025048,120]
[402640876,1768735831906,-1511.13,0.00013986,2]
[402640877,1768735831916,-190.72031864,0.00013986,2]
[402640878,1768735831926,-171.25216261,0.00014798,2]
[402640879,1768735831935,-209.27278259,0.00015384,2]
[402640880,1768735831947,-90.72721741,0.00015384,2]
[402640881,1768735831956,-250.0,0.00015384,2]
[402640882,1768735831965,-1200.0,0.00015672,2]
[402640883,1768735831975,-323.65648069,0.00015673,2]
[402640884,1768735831986,-176.34351931,0.00015673,2]
[402640885,1768735831995,-500.0,0.00015673,2]
[402640886,1768735832005,-402.56874527,0.00015673,2]
[402640887,1768735832014,-166.67510614,0.00015999,2]
[402640888,1768735832026,-133.32489386,0.00015999,2]
[402640889,1768735832040,-300.0,0.00015999,2]
[402640890,1768735832050,-454.82131842,0.00016,4]
[402640891,1768735832093,-1849.13491146,0.00016,4]
[402640892,1768735832105,-590.20062203,0.00016,4]
[402640893,1768735832125,-292.97700002,0.00016,4]
[402640894,1768735832137,-9571.47237611,0.00016,4]
[402640895,1768735832148,-151.0,0.00016129,2]
[402640896,1768735832157,-151.0,0.0001613,2]
[402640897,1768735832167,-151.0,0.00016147,2]
[402640898,1768735832177,-151.0,0.00016147,2]
[402640899,1768735832187,-150.0,0.000162,2]
[402640900,1768735832197,-150.0,0.000162,2]
[402640901,1768735832207,-150.0,0.000162,2]
[402640902,1768735832218,-150.0,0.000162,2]
[402640903,1768735832228,-64.82231633,0.000162,2]
[402640904,1768735832240,-85.17768367,0.000162,2]
[402640905,1768735832251,-150.0,0.000162,2]
[402640906,1768735832260,-150.0,0.000162,2]
[402640907,1768735832269,-150.0,0.000162,2]
[402640908,1768735832279,-426.71,0.00016221,2]
[402640909,1768735832288,-401.81302005,0.00016221,2]
[402640910,1768735832300,-250.0,0.00016221,2]
[402640911,1768735832312,-348.18697995,0.00016221,2]
[402640912,1768735832321,-227.56302005,0.0001626,2]
[402640913,1768735832332,-589.25697995,0.0001626,2]
[402640914,1768735832351,-550.0,0.00016372,2]
[402640915,1768735832365,-6220.88275131,0.00016373,2]
[402640916,1768735832385,-2031.76104923,0.00016373,2]
[402640917,1768735832398,-2339.23571831,0.00016373,2]
[402640918,1768735832424,-7051.8782135,0.00016373,2]
[402640919,1768735832437,-24254.69666765,0.00016373,2]
[402640920,1768735832449,-1000.0,0.00016438,2]
[402640921,1768735832461,-1000.0,0.00016438,2]
[402640922,1768735832472,-671.44774677,0.00016438,2]
[402640923,1768735832492,-328.55225323,0.00016438,2]
[402640924,1768735832505,-306.46934365,0.00016463,2]
[402640925,1768735832518,-500.0,0.00016463,2]
[402640926,1768735832530,-500.0,0.00016473,2]
[402640927,1768735832542,-500.0,0.00016473,2]
[402640928,1768735832553,-500.0,0.00016473,2]
[402640929,1768735832565,-103.31438685,0.00016473,2]
[402640930,1768735832578,-396.68561315,0.00016473,2]
[402640931,1768735832592,-104.31762891,0.00016473,2]
[402640935,1768735838214,-529.4993908,0.00016372,2]
[402640936,1768735838224,-500.0,0.00016372,2]
[402640937,1768735838234,-500.0,0.00016372,2]
[402640938,1768735838243,-500.0,0.00016372,2]
[402640939,1768735838253,-500.0,0.00016372,2]
[402640940,1768735838263,-500.0,0.00016372,2]
[402640941,1768735838273,-312.04692323,0.00016372,2]
[402640942,1768735838286,-187.95307677,0.00016372,2]
[402640943,1768735838296,-500.0,0.00016372,2]
[402640944,1768735838306,-500.0,0.00016372,2]
[402640945,1768735838316,-500.0,0.00016372,2]
[402640946,1768735838326,-500.0,0.00016372,2]
[402640947,1768735838335,-500.0,0.00016372,2]
[402640948,1768735838345,-600.0,0.00016372,2]
[402640949,1768735838355,-500.0,0.00016372,2]
[402640950,1768735838364,-500.0,0.00016372,2]
[402640951,1768735838374,-500.0,0.00016372,2]
[402640952,1768735838384,-500.0,0.00016372,2]
[402640953,1768735838394,-500.0,0.00016372,2]
[402640954,1768735838405,-500.0,0.00016372,2]
[402640955,1768735838415,-500.0,0.00016372,2]
[402640956,1768735838425,-500.0,0.00016372,2]